fUSD/lending_fUSD_20260605
["ID","MTS","AMOUNT","RATE_DAILY","PERIOD"]
[424208435,1780665127000,-200.0,0.00029168,2]
[424208437,1780665127000,-1076.32634457,0.00029197,7]
[424208439,1780665127000,-646.7,0.00029232,7]
[424208438,1780665127000,-1071.78,0.000292,30]
[424208430,1780665127000,-301.7971772,0.00029129,2]
[424208440,1780665127000,-502.51,0.00029232,7]
[424208436,1780665127000,-223.27138197,0.00029172,2]
[424208428,1780665127000,-333.84546276,0.00029127,2]
[424208420,1780665127000,-338.02753306,0.00029127,2]
[424208426,1780665127000,-178.68242071,0.00029127,2]
[424208427,1780665127000,-309.80334967,0.00029127,2]
[424208425,1780665127000,-182.86554387,0.00029127,2]
[424208423,1780665127000,-229.21765906,0.00029127,2]
[424208422,1780665127000,-194.89538777,0.00029127,2]
[424208421,1780665127000,-194.90563903,0.00029127,2]
[424208418,1780665127000,-154.88522891,0.00029126,2]
[424208419,1780665127000,-620.28628505,0.00029127,2]
[424208417,1780665127000,-206.98538525,0.00029126,2]
[424208416,1780665127000,-344.83357354,0.00029126,2]
[424208414,1780665127000,-383.86443278,0.00029126,2]
[424208415,1780665127000,-225.72997163,0.00029126,2]
[424208441,1780665127000,-554.0,0.00029273,4]
[424208424,1780665127000,-652.23757345,0.00029127,2]
[424208445,1780665127000,-2076.23,0.00029363,30]
[424208470,1780665127000,-2025.71,0.00029619,7]
[424208444,1780665127000,-2025.71,0.0002936,30]
[424208443,1780665127000,-1116.76796134,0.00029354,2]
[424208472,1780665127000,-179.97120458,0.00029666,2]
[424208473,1780665127000,-200.0,0.00029716,2]
[424208469,1780665127000,-1836.53,0.00029617,7]
[424208471,1780665127000,-2076.23,0.00029621,7]
[424208468,1780665127000,-1071.78,0.000296,30]
[424208467,1780665127000,-1400.0,0.00029576,60]
[424208466,1780665127000,-500.0,0.00029576,60]
[424208463,1780665127000,-811.0,0.00029478,30]
[424208464,1780665127000,-1045.52622774,0.00029516,7]
[424208461,1780665127000,-543.49,0.000294,7]
[424208465,1780665127000,-500.0,0.00029576,60]
[424208462,1780665127000,-1071.78,0.000294,30]
[424208459,1780665127000,-150.0,0.00029372,2]
[424208460,1780665127000,-1286.25,0.000294,7]
[424208458,1780665127000,-802.0,0.00029365,30]
[424208442,1780665127000,-179.97120458,0.00029319,2]
[424208457,1780665127000,-1472.0,0.00029365,30]
[424208447,1780665127000,-4430.0,0.00029365,30]
[424208448,1780665127000,-1079.0,0.00029365,30]
[424208450,1780665127000,-543.0,0.00029365,30]
[424208452,1780665127000,-684.0,0.00029365,30]
[424208446,1780665127000,-630.0,0.00029365,30]
[424208451,1780665127000,-1303.0,0.00029365,30]
[424208453,1780665127000,-3208.0,0.00029365,30]
[424208454,1780665127000,-3174.0,0.00029365,30]
[424208456,1780665127000,-629.0,0.00029365,30]
[424208455,1780665127000,-1071.0,0.00029365,30]
[424208449,1780665127000,-2241.0,0.00029365,30]
[424208493,1780665128000,-469.76944804,0.0002994,2]
[424208494,1780665128000,-332.00063981,0.0002994,2]
[424208495,1780665128000,-201.10486381,0.0002994,2]
[424208496,1780665128000,-522.85542233,0.0002994,2]
[424208492,1780665128000,-243.33337437,0.0002994,2]
[424208497,1780665128000,-150.19828257,0.0002994,2]
[424208501,1780665128000,-228.11703454,0.00029954,2]
[424208499,1780665128000,-522.92630365,0.0002994,2]
[424208498,1780665128000,-467.62603747,0.0002994,2]
[424208502,1780665128000,-466.50649886,0.00029954,2]
[424208503,1780665128000,-590.98357599,0.00029954,2]
[424208487,1780665128000,-392.10370028,0.00029939,2]
[424208500,1780665128000,-570.28324532,0.00029954,2]
[424208488,1780665128000,-416.26804211,0.00029939,2]
[424208474,1780665128000,-1116.76796134,0.00029746,2]
[424208490,1780665128000,-489.40114199,0.00029939,2]
[424208485,1780665128000,-935.05246504,0.00029939,2]
[424208486,1780665128000,-529.21382221,0.00029939,2]
[424208484,1780665128000,-469.45031775,0.00029939,2]
[424208481,1780665128000,-1184.24960308,0.00029938,2]
[424208482,1780665128000,-458.97321496,0.00029939,2]
[424208483,1780665128000,-461.53831546,0.00029939,2]
[424208480,1780665128000,-479.00587968,0.00029938,2]
[424208479,1780665128000,-30476.0455475,0.000299,2]
[424208478,1780665128000,-500.0,0.00029843,2]
[424208476,1780665128000,-554.0,0.00029807,4]
[424208477,1780665128000,-428.2803073,0.0002981,5]
[424208475,1780665128000,-1071.78,0.000298,30]
[424208505,1780665128000,-540.0375935,0.00029954,2]
[424208489,1780665128000,-504.53518245,0.00029939,2]
[424208504,1780665128000,-165.0533866,0.00029954,2]
[424208491,1780665128000,-240.20559195,0.0002994,2]
[424208509,1780665128000,-273.58628567,0.00029954,2]
[424208507,1780665128000,-605.27240127,0.00029954,2]
[424208537,1780665128000,-309.77045782,0.00029999,2]
[424208535,1780665128000,-517.25036031,0.00029999,2]
[424208534,1780665128000,-451.45994325,0.00029999,2]
[424208533,1780665128000,-575.79664916,0.00029999,2]
[424208536,1780665128000,-413.97077049,0.00029999,2]
[424208532,1780665128000,-513.23520248,0.00029999,2]
[424208531,1780665128000,-243.76851266,0.00029999,2]
[424208527,1780665128000,-569.44289015,0.00029983,2]
[424208529,1780665128000,-233.13440488,0.00029984,2]
[424208525,1780665128000,-179.14172686,0.00029983,2]
[424208528,1780665128000,-532.39329172,0.00029984,2]
[424208526,1780665128000,-563.90460474,0.00029983,2]
[424208524,1780665128000,-248.46683468,0.00029983,2]
[424208520,1780665128000,-417.09683741,0.00029969,2]
[424208530,1780665128000,-483.73710748,0.00029999,2]
[424208522,1780665128000,-518.94,0.00029973,7]
[424208523,1780665128000,-366.53473931,0.00029983,2]
[424208506,1780665128000,-513.56106455,0.00029954,2]
[424208510,1780665128000,-220.96815916,0.00029968,2]
[424208511,1780665128000,-217.55666825,0.00029969,2]
[424208516,1780665128000,-545.00481182,0.00029969,2]
[424208513,1780665128000,-478.43106707,0.00029969,2]
[424208515,1780665128000,-624.10697841,0.00029969,2]
[424208508,1780665128000,-451.11462163,0.00029954,2]
[424208512,1780665128000,-509.94794669,0.00029969,2]
[424208514,1780665128000,-497.72810181,0.00029969,2]
[424208518,1780665128000,-186.5413932,0.00029969,2]
[424208521,1780665128000,-269.47404198,0.00029972,2]
[424208519,1780665128000,-610.56077583,0.00029969,2]
[424208538,1780665128000,-930.42942758,0.0003,2]
[424208517,1780665128000,-265.4054757,0.00029969,2]
[424208556,1780665129000,-1000.0,0.0003,2]
[424208557,1780665129000,-166.13870843,0.0003,2]
[424208559,1780665129000,-9910.12031461,0.0003,14]
[424208562,1780665129000,-1517.2287104,0.0003,2]
[424208561,1780665129000,-152337.4135236,0.0003,2]
[424208560,1780665129000,-193.11747524,0.0003,2]
[424208564,1780665129000,-18495.70618945,0.0003,2]
[424208566,1780665129000,-200.0,0.0003,2]
[424208558,1780665129000,-4806.49535936,0.0003,24]
[424208565,1780665129000,-215.77576141,0.0003,30]
[424208567,1780665129000,-200.0,0.0003,2]
[424208570,1780665129000,-1071.78,0.0003,30]
[424208569,1780665129000,-200.0,0.0003,2]
[424208571,1780665129000,-2000.0,0.0003,7]
[424208563,1780665129000,-650.0,0.0003,2]
[424208553,1780665129000,-1125.09091813,0.0003,2]
[424208542,1780665129000,-257.73096849,0.0003,2]
[424208552,1780665129000,-11183.19259809,0.0003,2]
[424208568,1780665129000,-215.77576141,0.0003,10]
[424208541,1780665129000,-389.79077554,0.0003,2]
[424208539,1780665129000,-507.04129959,0.0003,2]
[424208540,1780665129000,-389.81127807,0.0003,2]
[424208543,1780665129000,-222.30575489,0.0003,2]
[424208544,1780665129000,-230.06886792,0.0003,2]
[424208554,1780665129000,-1852.48124811,0.0003,2]
[424208549,1780665129000,-20259.24816589,0.0003,2]
[424208547,1780665129000,-1941.91000824,0.0003,3]
[424208546,1780665129000,-25362.16138708,0.0003,5]
[424208548,1780665129000,-561.63642776,0.0003,30]
[424208550,1780665129000,-70727.59586373,0.0003,2]
[424208551,1780665129000,-2000.0,0.0003,3]
[424208555,1780665129000,-899.04564997,0.0003,10]
[424208545,1780665129000,-368.8693423,0.0003,30]
[424208573,1780665129000,-201.09154202,0.0003,2]
[424208572,1780665129000,-458.43531812,0.0003,2]
[424208601,1780665129000,-854.09,0.00030137,2]
[424208596,1780665129000,-3066389.45752455,0.0003013,7]
[424208597,1780665129000,-1918.15308054,0.0003013,2]
[424208595,1780665129000,-302.53429542,0.0003013,2]
[424208599,1780665129000,-1000.0,0.00030134,7]
[424208598,1780665129000,-16372.1789971,0.0003013,7]
[424208600,1780665129000,-161.26157325,0.00030136,2]
[424208590,1780665129000,-1094.26313574,0.0003013,2]
[424208602,1780665129000,-255.05,0.00030137,2]
[424208603,1780665129000,-300.0,0.00030137,120]
[424208604,1780665129000,-169.46407248,0.00030137,2]
[424208608,1780665129000,-500.0,0.00030137,3]
[424208607,1780665129000,-477.87,0.00030137,2]
[424208578,1780665129000,-464.7050245,0.0003,2]
[424208606,1780665129000,-508.39221743,0.00030137,2]
[424208605,1780665129000,-338.92814495,0.00030137,2]
[424208589,1780665129000,-446.54276394,0.00030046,2]
[424208592,1780665129000,-646.19632428,0.0003013,2]
[424208587,1780665129000,-150.0,0.00030037,2]
[424208575,1780665129000,-978.35636017,0.0003,2]
[424208579,1780665129000,-500.76819413,0.0003,2]
[424208577,1780665129000,-357.36484142,0.0003,2]
[424208574,1780665129000,-208.03935119,0.0003,2]
[424208576,1780665129000,-365.73108775,0.0003,2]
[424208580,1780665129000,-577.05827322,0.0003,2]
[424208591,1780665129000,-14123.40733269,0.0003013,2]
[424208584,1780665129000,-150.0,0.00030037,2]
[424208582,1780665129000,-179.97120458,0.00030014,2]
[424208586,1780665129000,-150.0,0.00030037,2]
[424208581,1780665129000,-452.6957658,0.00030002,2]
[424208583,1780665129000,-150.0,0.00030037,2]
[424208588,1780665129000,-284.77957631,0.00030046,2]
[424208593,1780665129000,-205.57018299,0.0003013,2]
[424208594,1780665129000,-7640.97574053,0.0003013,14]
[424208585,1780665129000,-150.0,0.00030037,2]
[424208624,1780665130000,-156.0,0.00030137,2]
[424208635,1780665130000,-150.0,0.00030137,2]
[424208629,1780665130000,-200.0,0.00030137,2]
[424208632,1780665130000,-150.0,0.00030137,2]
[424208631,1780665130000,-200.0,0.00030137,2]
[424208630,1780665130000,-200.0,0.00030137,2]
[424208634,1780665130000,-150.0,0.00030137,2]
[424208639,1780665130000,-156.57780002,0.00030137,2]
[424208637,1780665130000,-150.0,0.00030137,2]
[424208636,1780665130000,-150.0,0.00030137,2]
[424208638,1780665130000,-150.0,0.00030137,2]
[424208642,1780665130000,-200.0,0.00030137,2]
[424208641,1780665130000,-992.67818787,0.00030137,30]
[424208625,1780665130000,-282.21,0.00030137,120]
[424208633,1780665130000,-150.0,0.00030137,2]
[424208628,1780665130000,-327.53,0.00030137,2]
[424208609,1780665130000,-500.0,0.00030137,3]
[424208626,1780665130000,-1500.0,0.00030137,15]
[424208610,1780665130000,-500.0,0.00030137,3]
[424208611,1780665130000,-500.0,0.00030137,3]
[424208614,1780665130000,-150.0,0.00030137,2]
[424208613,1780665130000,-500.0,0.00030137,3]
[424208615,1780665130000,-150.0,0.00030137,30]
[424208612,1780665130000,-500.0,0.00030137,3]
[424208623,1780665130000,-200.0,0.00030137,2]
[424208617,1780665130000,-500.0,0.00030137,3]
[424208618,1780665130000,-1354.24939418,0.00030137,120]
[424208616,1780665130000,-500.0,0.00030137,3]
[424208620,1780665130000,-1412.28688489,0.00030137,120]
[424208621,1780665130000,-500.0,0.00030137,3]
[424208622,1780665130000,-200.0,0.00030137,2]
[424208627,1780665130000,-1790.940308,0.00030137,15]
[424208619,1780665130000,-22291.99451805,0.00030137,120]
[424208640,1780665130000,-1116.76796134,0.00030137,2]
[424208677,1780665130000,-282.21,0.00030384,120]
[424208643,1780665130000,-1286.25,0.000302,7]
[424208663,1780665130000,-179.97120458,0.00030362,2]
[424208664,1780665130000,-630.0,0.00030365,30]
[424208668,1780665130000,-543.0,0.00030365,30]
[424208667,1780665130000,-2241.0,0.00030365,30]
[424208665,1780665130000,-4430.0,0.00030365,30]
[424208666,1780665130000,-1079.0,0.00030365,30]
[424208662,1780665130000,-554.0,0.00030341,5]
[424208670,1780665130000,-684.0,0.00030365,30]
[424208671,1780665130000,-3208.0,0.00030365,30]
[424208673,1780665130000,-1071.0,0.00030365,30]
[424208675,1780665130000,-1472.0,0.00030365,30]
[424208674,1780665130000,-629.0,0.00030365,30]
[424208676,1780665130000,-802.0,0.00030365,30]
[424208644,1780665130000,-15818.19369136,0.000302,2]
[424208672,1780665130000,-3174.0,0.00030365,30]
[424208658,1780665130000,-4780.8,0.00030239,2]
[424208669,1780665130000,-1303.0,0.00030365,30]
[424208659,1780665130000,-200.0,0.00030264,2]
[424208660,1780665130000,-527.18,0.00030282,7]
[424208646,1780665130000,-511.187032,0.000302,5]
[424208647,1780665130000,-511.187033,0.000302,6]
[424208649,1780665130000,-253.13,0.000302,2]
[424208648,1780665130000,-738.13,0.000302,2]
[424208653,1780665130000,-300.59,0.00030236,30]
[424208651,1780665130000,-252.35,0.000302,2]
[424208645,1780665130000,-358.634121,0.000302,3]
[424208652,1780665130000,-1250.73,0.00030214,2]
[424208654,1780665130000,-200.4,0.00030236,30]
[424208655,1780665130000,-250.5,0.00030236,30]
[424208656,1780665130000,-200.4,0.00030236,30]
[424208657,1780665130000,-250.5,0.00030236,30]
[424208661,1780665130000,-15388.37,0.0003034,7]
[424208650,1780665130000,-1071.78,0.000302,30]
[424208694,1780665131000,-588.15555042,0.0003052,2]
[424208697,1780665131000,-652.53485599,0.0003052,2]
[424208700,1780665131000,-480.41118389,0.00030521,2]
[424208699,1780665131000,-170.30248078,0.00030521,2]
[424208702,1780665131000,-486.66674875,0.00030521,2]
[424208703,1780665131000,-427.39977061,0.00030521,2]
[424208701,1780665131000,-178.28967843,0.00030521,2]
[424208704,1780665131000,-371.20028006,0.00030521,2]
[424208707,1780665131000,-326.49332156,0.00030521,2]
[424208711,1780665131000,-430.24250619,0.00030521,2]
[424208712,1780665131000,-402.20972761,0.00030521,2]
[424208706,1780665131000,-154.86804363,0.00030521,2]
[424208709,1780665131000,-498.00095971,0.00030521,2]
[424208708,1780665131000,-626.35926405,0.00030521,2]
[424208713,1780665131000,-697.14056311,0.00030521,2]
[424208710,1780665131000,-165.70335479,0.00030521,2]
[424208695,1780665131000,-624.40206316,0.0003052,2]
[424208679,1780665131000,-200.0,0.00030438,2]
[424208698,1780665131000,-201.27081348,0.00030521,2]
[424208678,1780665131000,-180.79,0.00030411,120]
[424208680,1780665131000,-200.0,0.00030438,2]
[424208685,1780665131000,-811.0,0.00030478,30]
[424208682,1780665131000,-200.0,0.00030438,2]
[424208681,1780665131000,-200.0,0.00030438,2]
[424208684,1780665131000,-172.0,0.00030447,14]
[424208683,1780665131000,-500.0,0.00030442,14]
[424208686,1780665131000,-2330.7,0.00030479,7]
[424208687,1780665131000,-718.50881952,0.00030519,2]
[424208689,1780665131000,-611.96428661,0.0003052,2]
[424208688,1780665131000,-1578.99947078,0.00030519,2]
[424208690,1780665131000,-615.38442061,0.0003052,2]
[424208691,1780665131000,-625.933757,0.0003052,2]
[424208693,1780665131000,-705.61842962,0.0003052,2]
[424208692,1780665131000,-1246.73662005,0.0003052,2]
[424208696,1780665131000,-672.7135766,0.0003052,2]
[424208715,1780665131000,-300.39656513,0.00030521,2]
[424208705,1780665131000,-154.62287094,0.00030521,2]
[424208721,1780665131000,-623.50138329,0.00030521,2]
[424208738,1780665131000,-441.93631832,0.0003055,2]
[424208737,1780665131000,-547.17257134,0.00030536,2]
[424208740,1780665131000,-726.67308243,0.0003055,2]
[424208739,1780665131000,-832.14263788,0.0003055,2]
[424208741,1780665131000,-405.48865826,0.0003055,2]
[424208742,1780665131000,-530.81095139,0.0003055,2]
[424208743,1780665131000,-373.08278641,0.0003055,2]
[424208744,1780665131000,-435.46553986,0.0003055,2]
[424208747,1780665131000,-538.94808395,0.00030553,2]
[424208748,1780665131000,-464.65568673,0.00030557,2]
[424208745,1780665131000,-814.08103444,0.0003055,2]
[424208746,1780665131000,-625.64525611,0.0003055,2]
[424208749,1780665131000,-549.80210897,0.00030564,2]
[424208751,1780665131000,-435.11333649,0.00030564,2]
[424208750,1780665131000,-496.93366936,0.00030564,2]
[424208736,1780665131000,-330.10677321,0.00030536,2]
[424208735,1780665131000,-601.48616218,0.00030536,2]
[424208714,1780665131000,-346.90103295,0.00030521,2]
[424208732,1780665131000,-168.06279881,0.00030536,2]
[424208734,1780665131000,-610.21779642,0.00030536,2]
[424208720,1780665131000,-169.02422643,0.00030521,2]
[424208716,1780665131000,-157.68801761,0.00030521,2]
[424208719,1780665131000,-315.65352557,0.00030521,2]
[424208718,1780665131000,-170.95079609,0.00030521,2]
[424208722,1780665131000,-697.23507153,0.00030521,2]
[424208725,1780665131000,-622.00866514,0.00030536,2]
[424208726,1780665131000,-787.97810131,0.00030536,2]
[424208717,1780665131000,-160.43311238,0.00030521,2]
[424208729,1780665131000,-168.98315568,0.00030536,2]
[424208724,1780665131000,-456.23406909,0.00030536,2]
[424208728,1780665131000,-720.05012467,0.00030536,2]
[424208727,1780665131000,-212.94586999,0.00030536,2]
[424208731,1780665131000,-807.02986836,0.00030536,2]
[424208730,1780665131000,-684.74808607,0.00030536,2]
[424208733,1780665131000,-677.85628991,0.00030536,2]
[424208723,1780665131000,-760.37766043,0.00030536,2]
[424208770,1780665132000,-349.28960793,0.00030582,2]
[424208772,1780665132000,-460.13773585,0.00030582,2]
[424208773,1780665132000,-412.40664373,0.00030582,2]
[424208774,1780665132000,-687.65297718,0.00030582,2]
[424208776,1780665132000,-619.60669933,0.00030582,2]
[424208775,1780665132000,-193.40856996,0.00030582,2]
[424208778,1780665132000,-676.05506612,0.00030582,2]
[424208777,1780665132000,-1240.5725701,0.00030582,2]
[424208779,1780665132000,-584.6861633,0.00030582,2]
[424208781,1780665132000,-667.69092551,0.00030582,2]
[424208783,1780665132000,-1304.4751469,0.00030582,2]
[424208782,1780665132000,-402.18308405,0.00030582,2]
[424208771,1780665132000,-444.61150977,0.00030582,2]
[424208780,1780665132000,-584.7169171,0.00030582,2]
[424208769,1780665132000,-515.46193697,0.00030582,2]
[424208761,1780665132000,-487.53702531,0.00030581,2]
[424208768,1780665132000,-442.93396391,0.00030582,2]
[424208752,1780665132000,-679.93059558,0.00030564,2]
[424208754,1780665132000,-637.90808943,0.00030564,2]
[424208753,1780665132000,-751.87280632,0.00030564,2]
[424208755,1780665132000,-746.59215272,0.00030564,2]
[424208757,1780665132000,-709.8577223,0.00030565,2]
[424208758,1780665132000,-358.28345372,0.00030565,2]
[424208767,1780665132000,-150.51900411,0.00030582,2]
[424208759,1780665132000,-466.26880975,0.00030566,2]
[424208760,1780665132000,-644.98280997,0.00030581,2]
[424208763,1780665132000,-767.72886555,0.00030581,2]
[424208762,1780665132000,-684.31360331,0.00030581,2]
[424208764,1780665132000,-677.18991488,0.00030581,2]
[424208766,1780665132000,-689.66714708,0.00030581,2]
[424208765,1780665132000,-282.90128703,0.00030581,2]
[424208784,1780665132000,-416.07870238,0.00030582,2]
[424208785,1780665132000,-548.59663162,0.00030582,2]
[424208756,1780665132000,-759.25718687,0.00030564,2]
[424208787,1780665132000,-769.41103096,0.00030582,2]
[424208807,1780665132000,-152.0,0.00030812,6]
[424208806,1780665132000,-200.0,0.00030812,2]
[424208809,1780665132000,-609.95,0.00030827,7]
[424208808,1780665132000,-200.0,0.00030819,2]
[424208810,1780665132000,-1088.73,0.00030827,7]
[424208811,1780665132000,-200.0,0.0003084,2]
[424208804,1780665132000,-200.0,0.00030793,2]
[424208813,1780665132000,-150.0,0.00030841,2]
[424208817,1780665132000,-200.0,0.00030891,2]
[424208816,1780665132000,-200.0,0.00030875,2]
[424208815,1780665132000,-554.0,0.00030875,6]
[424208818,1780665132000,-200.0,0.00030905,2]
[424208786,1780665132000,-536.04726214,0.00030582,2]
[424208819,1780665132000,-971.02,0.00030914,7]
[424208814,1780665132000,-200.0,0.00030859,2]
[424208805,1780665132000,-1250.73,0.00030802,2]
[424208812,1780665132000,-1638.72083584,0.0003084,2]
[424208803,1780665132000,-49372.86747099,0.00030788,7]
[424208792,1780665132000,-669.8141459,0.00030628,2]
[424208801,1780665132000,-200.0,0.00030743,2]
[424208793,1780665132000,-256.60328286,0.00030628,2]
[424208789,1780665132000,-193.36365148,0.00030584,2]
[424208788,1780665132000,-603.5943544,0.00030584,2]
[424208791,1780665132000,-569.55915261,0.00030628,2]
[424208795,1780665132000,-203.05245786,0.00030649,2]
[424208790,1780665132000,-620.95615574,0.00030589,2]
[424208794,1780665132000,-282.23,0.0003063,120]
[424208797,1780665132000,-179.97120458,0.00030709,2]
[424208799,1780665132000,-200.0,0.00030743,2]
[424208796,1780665132000,-200.0,0.00030681,2]
[424208800,1780665132000,-200.0,0.00030743,2]
[424208798,1780665132000,-200.0,0.00030743,2]
[424208802,1780665132000,-200.0,0.00030761,2]
[424208839,1780665133000,-200.0,0.00031017,2]
[424208840,1780665133000,-200.0,0.00031027,2]
[424208841,1780665133000,-200.0,0.00031036,2]
[424208843,1780665133000,-200.0,0.0003105,2]
[424208842,1780665133000,-200.0,0.00031044,2]
[424208848,1780665133000,-179.97120458,0.00031057,2]
[424208849,1780665133000,-200.0,0.00031061,2]
[424208845,1780665133000,-200.0,0.0003105,2]
[424208844,1780665133000,-200.0,0.0003105,2]
[424208846,1780665133000,-200.0,0.0003105,2]
[424208851,1780665133000,-200.0,0.00031077,2]
[424208850,1780665133000,-200.0,0.00031069,2]
[424208852,1780665133000,-200.0,0.00031085,2]
[424208838,1780665133000,-200.0,0.00031008,2]
[424208847,1780665133000,-200.0,0.00031053,2]
[424208837,1780665133000,-614.3696013,0.00031,120]
[424208821,1780665133000,-200.0,0.00030932,2]
[424208835,1780665133000,-351.13159668,0.00031,5]
[424208820,1780665133000,-200.0,0.00030919,2]
[424208822,1780665133000,-200.0,0.00030944,2]
[424208855,1780665133000,-200.0,0.00031101,2]
[424208824,1780665133000,-424.64,0.00030958,7]
[424208823,1780665133000,-200.0,0.00030956,2]
[424208825,1780665133000,-424.64,0.00030958,7]
[424208826,1780665133000,-594.5,0.00030958,7]
[424208827,1780665133000,-200.0,0.00030967,2]
[424208828,1780665133000,-200.0,0.00030978,2]
[424208831,1780665133000,-259.45,0.00030999,4]
[424208833,1780665133000,-864.85,0.00030999,4]
[424208834,1780665133000,-1286.25,0.00031,7]
[424208832,1780665133000,-605.39,0.00030999,4]
[424208829,1780665133000,-200.0,0.00030988,2]
[424208830,1780665133000,-200.0,0.00030998,2]
[424208836,1780665133000,-1259.48,0.00031,14]
[424208853,1780665133000,-200.0,0.00031093,2]
[424208858,1780665133000,-1558.42077506,0.00031101,2]
[424208856,1780665133000,-764.95535826,0.00031101,2]
[424208874,1780665133000,-1040.17829735,0.00031132,2]
[424208876,1780665133000,-200.0,0.00031136,2]
[424208879,1780665133000,-797.38511178,0.00031146,2]
[424208880,1780665133000,-949.07148358,0.00031146,2]
[424208882,1780665133000,-200.0,0.0003115,2]
[424208881,1780665133000,-887.32215287,0.00031147,2]
[424208878,1780665133000,-849.91324448,0.00031146,2]
[424208883,1780665133000,-200.0,0.00031157,2]
[424208886,1780665133000,-862.08393386,0.00031163,2]
[424208888,1780665133000,-510.87,0.00031164,7]
[424208854,1780665133000,-1973.74933847,0.000311,2]
[424208890,1780665133000,-1550.71571263,0.00031164,2]
[424208887,1780665133000,-200.0,0.00031163,2]
[424208891,1780665133000,-845.06883265,0.00031164,2]
[424208884,1780665133000,-806.22851246,0.00031163,2]
[424208875,1780665133000,-908.34135303,0.00031132,2]
[424208889,1780665133000,-774.50837417,0.00031164,2]
[424208873,1780665133000,-200.0,0.00031129,2]
[424208877,1780665133000,-200.0,0.00031143,2]
[424208857,1780665133000,-769.23052576,0.00031101,2]
[424208859,1780665133000,-782.94908006,0.00031102,2]
[424208861,1780665133000,-871.54383942,0.00031102,2]
[424208863,1780665133000,-200.0,0.00031115,2]
[424208860,1780665133000,-871.42570389,0.00031102,2]
[424208865,1780665133000,-777.51083143,0.00031117,2]
[424208862,1780665133000,-200.0,0.00031108,2]
[424208885,1780665133000,-855.39200414,0.00031163,2]
[424208867,1780665133000,-900.06265583,0.00031117,2]
[424208868,1780665133000,-855.93510758,0.00031117,2]
[424208871,1780665133000,-891.3286438,0.00031117,2]
[424208870,1780665133000,-751.85770272,0.00031117,2]
[424208869,1780665133000,-847.32036238,0.00031117,2]
[424208866,1780665133000,-984.97262664,0.00031117,2]
[424208864,1780665133000,-950.47207554,0.00031117,2]
[424208872,1780665133000,-200.0,0.00031122,2]
[424208905,1780665134000,-200.0,0.00031207,2]
[424208909,1780665134000,-497.8960246,0.0003122,60]
[424208908,1780665134000,-500.0,0.0003122,60]
[424208910,1780665134000,-1400.0,0.0003122,60]
[424208911,1780665134000,-200.0,0.00031224,2]
[424208904,1780665134000,-200.0,0.00031201,2]
[424208913,1780665134000,-200.0,0.00031236,2]
[424208914,1780665134000,-200.0,0.00031241,2]
[424208916,1780665134000,-200.0,0.00031253,2]
[424208912,1780665134000,-200.0,0.0003123,2]
[424208906,1780665134000,-200.0,0.00031213,2]
[424208901,1780665134000,-168.16871,0.000312,4]
[424208902,1780665134000,-297.872849,0.000312,4]
[424208907,1780665134000,-200.0,0.00031219,2]
[424208899,1780665134000,-200.0,0.00031195,2]
[424208900,1780665134000,-479.220491,0.000312,4]
[424208898,1780665134000,-200.0,0.00031189,2]
[424208896,1780665134000,-200.0,0.00031176,2]
[424208897,1780665134000,-200.0,0.00031182,2]
[424208893,1780665134000,-1630.59393362,0.00031164,2]
[424208894,1780665134000,-250.0,0.00031165,7]
[424208892,1780665134000,-834.61365689,0.00031164,2]
[424208915,1780665134000,-200.0,0.00031247,2]
[424208903,1780665134000,-1000.0,0.000312,7]
[424208895,1780665134000,-200.0,0.0003117,2]
[424208917,1780665134000,-200.0,0.00031258,2]
[424208920,1780665134000,-200.0,0.00031274,2]